bitfinex/quotes_ETHUSD_20250909
["timestamp","ask_amount","ask_price","bid_price","bid_amount"]
[1757381607959,0.001,4288.3,4288.0,5.63018955]
[1757381608293,0.001,4288.3,4288.0,3.2981]
[1757381608472,0.001,4288.3,4288.0,5.95999955]
[1757381608676,0.001,4288.3,4288.0,6.76499955]
[1757381609055,0.001,4288.3,4288.0,6.43819955]
[1757381609347,0.001,4288.3,4288.0,5.95999955]
[1757381610270,0.001,4288.3,4288.0,3.32981]
[1757381610442,0.793,4288.3,4288.0,3.32981]
[1757381610873,1.0909,4288.1,4288.0,3.0]
[1757381611055,2.0106,4288.1,4288.0,3.0]
[1757381613734,1.0909,4288.1,4288.0,3.0]
[1757381615622,1.537,4288.1,4288.0,3.0]
[1757381615917,1.9892,4288.1,4288.0,3.0]
[1757381617926,3.12414393,4287.9,4287.8,0.69974191]
[1757381618109,8.22174393,4287.9,4287.8,0.69974191]
[1757381618421,0.792,4287.6,4287.0,0.116]
[1757381618624,1.0793,4287.1,4287.0,0.116]
[1757381618823,1.0793,4287.1,4286.9,0.69984475]
[1757381618824,0.792,4287.0,4286.9,0.69984475]
[1757381619124,1.2381,4287.0,4286.8,0.025]
[1757381619314,1.0793,4286.9,4286.8,0.025]
[1757381620210,0.792,4286.9,4286.8,3.025]
[1757381620521,0.792,4286.9,4286.8,2.97530607]
[1757381620895,0.792,4286.9,4286.8,3.6425637]
[1757381621325,0.792,4286.9,4286.8,0.6425637]
[1757381621627,0.792,4286.9,4286.8,0.025]
[1757381621981,0.792,4286.9,4286.8,5.65504237]
[1757381624540,0.792,4286.9,4286.8,5.65704237]
[1757381624760,0.116,4287.6,4286.9,3.0]
[1757381624885,5.702,4287.8,4287.5,0.2973]
[1757381625381,5.702,4287.8,4287.2,2.44847228]
[1757381625582,0.792,4287.7,4287.2,2.44847228]
[1757381625899,5.702,4287.8,4287.6,0.2973]
[1757381626612,0.792,4287.7,4287.5,2.44834046]
[1757381626800,0.792,4287.7,4287.6,0.24483405]
[1757381627422,1.0793,4287.7,4287.6,0.24483405]
[1757381627729,1.0793,4287.7,4287.5,0.81575823]
[1757381628029,0.8983,4287.6,4287.3,0.116]
[1757381628332,0.8983,4287.6,4287.3,0.81579578]
[1757381628532,0.2873,4287.4,4287.3,0.116]
[1757381628843,1.0793,4287.4,4287.3,0.116]
[1757381629338,0.792,4287.4,4287.3,1.19830157]
[1757381629631,0.792,4287.4,4287.3,3.82807188]
[1757381630382,0.792,4287.4,4287.3,1.49560157]
[1757381630691,0.792,4287.4,4287.3,3.82807188]
[1757381631839,0.792,4287.4,4287.3,1.49560157]
[1757381632043,0.792,4287.4,4287.3,2.74577031]
[1757381633245,1.5254,4287.4,4287.3,0.116]
[1757381633826,1.9776,4287.4,4287.3,0.116]
[1757381634325,1.5254,4287.4,4287.3,0.116]
[1757381634730,1.0793,4287.4,4287.3,0.116]
[1757381634930,1.0793,4287.4,4287.3,0.27384464]
[1757381636466,0.792,4287.4,4287.3,2.90361495]
[1757381636611,0.792,4287.4,4287.3,0.57114464]
[1757381636812,0.792,4287.4,4287.3,2.90361495]
[1757381637014,0.792,4287.4,4287.3,0.57114464]
[1757381637202,0.792,4287.4,4287.3,0.27384464]
[1757381638326,1.5254,4287.4,4287.3,0.27384464]
[1757381638527,0.792,4287.3,4286.8,2.35974193]
[1757381638739,1.2381,4287.3,4286.9,2.33267494]
[1757381638966,0.792,4287.1,4286.9,0.69986434]
[1757381639170,0.2873,4287.0,4286.9,3.03254247]
[1757381639332,0.2873,4287.0,4286.9,4.27458016]
[1757381639534,1.2381,4287.1,4287.0,5.33263354]
[1757381639765,1.2381,4287.1,4287.0,2.33263354]
[1757381640077,1.5254,4287.1,4287.0,2.33263354]
[1757381640979,1.5254,4287.1,4287.0,5.33263354]
[1757381641152,1.5254,4287.1,4287.0,6.48345727]
[1757381641474,0.4522,4287.3,4287.2,2.33252472]
[1757381641475,0.792,4287.3,4287.2,2.33252472]
[1757381641881,0.792,4287.3,4287.2,5.63392472]
[1757381643001,1.5723,4287.3,4287.2,3.69979577]
[1757381643143,2.0486,4287.3,4287.2,3.0]
[1757381643339,2.0486,4287.3,4286.9,0.6998725]
[1757381643575,0.792,4287.1,4287.0,3.0]
[1757381643737,0.792,4287.1,4287.0,3.55158894]
[1757381643938,0.792,4287.2,4287.1,5.33257913]
[1757381644197,0.792,4287.2,4287.1,5.44857913]
[1757381645289,0.792,4287.2,4287.1,5.74997913]
[1757381645588,0.792,4287.2,4287.1,7.11388319]
[1757381646437,4.704,4287.6,4287.5,2.33236151]
[1757381646772,4.704,4287.6,4287.5,2.63376151]
[1757381646971,0.792,4287.6,4287.5,5.74976151]
[1757381647283,0.792,4287.6,4287.5,7.24918236]
[1757381648671,0.792,4287.6,4287.5,6.94778236]
[1757381648672,2.0486,4287.6,4287.5,6.94778236]
[1757381648872,2.0486,4287.6,4287.5,5.44836151]
[1757381649244,2.0486,4287.6,4287.5,3.0]
[1757381649445,2.0486,4287.6,4287.5,5.33236151]
[1757381649794,0.792,4287.5,4287.0,1.66977353]
[1757381649998,0.792,4287.5,4286.8,0.143]
[1757381649999,0.792,4287.0,4286.8,0.143]
[1757381650145,1.1022,4287.0,4286.9,5.33268795]
[1757381650342,2.0486,4287.0,4286.9,6.27145675]
[1757381650544,2.0486,4287.0,4286.9,3.9387688]
[1757381650846,2.0486,4287.0,4286.9,6.27145675]
[1757381652747,4.704,4287.2,4287.1,2.33257913]
[1757381653069,0.792,4287.1,4287.0,2.33260965]
[1757381653276,1.2621,4287.1,4287.0,2.33260965]
[1757381653475,2.0486,4287.1,4287.0,2.33260965]
[1757381654074,0.792,4287.1,4287.0,3.57870805]
[1757381654828,0.792,4287.1,4287.0,4.27856587]
[1757381655578,0.792,4287.1,4287.0,3.97716587]
[1757381655927,0.792,4287.1,4287.0,0.69985782]
[1757381655928,2.0486,4287.1,4287.0,0.69985782]
[1757381656225,2.0486,4287.1,4286.8,0.143]
[1757381656384,1.5785,4287.1,4287.0,2.33263354]
[1757381656582,2.0486,4287.1,4287.0,2.33263354]
[1757381657528,2.0486,4287.1,4286.9,3.03256415]
[1757381657825,0.792,4286.9,4286.8,0.027]
[1757381658031,4.704,4286.9,4286.8,0.027]
[1757381658182,5.4905,4286.9,4286.8,0.027]
[1757381658523,5.9606,4286.9,4286.8,0.027]
[1757381660576,10.08328795,4286.9,4286.8,0.027]
[1757381662811,11.38448129,4286.9,4286.8,0.027]
[1757381664026,9.05179334,4286.9,4286.8,0.027]
[1757381664900,11.38448129,4286.9,4286.8,0.027]
[1757381667529,10.08328795,4286.9,4286.8,0.027]
[1757381678882,8.82668795,4286.9,4286.8,0.3415]
[1757381679084,8.82668795,4286.9,4286.8,0.027]
[1757381679634,8.82668795,4286.9,4286.8,0.3415]
[1757381680630,2.582,4286.9,4286.8,0.3415]
[1757381680830,6.494,4286.9,4286.8,0.3415]
[1757381681035,6.494,4286.9,4286.8,0.027]
[1757381681337,6.494,4286.9,4286.8,0.3415]
[1757381682471,6.494,4286.9,4286.8,0.027]
[1757381683237,8.82668795,4286.9,4286.8,0.027]
[1757381683434,6.494,4286.9,4286.8,0.027]
[1757381684080,11.01322159,4286.9,4286.8,0.027]
[1757381692580,3.12485121,4286.6,4286.5,0.002]
[1757381692841,15.20393734,4286.6,4286.5,0.002]
[1757381693018,15.4760918,4286.6,4286.5,0.002]
[1757381693157,16.4372918,4286.6,4286.5,0.002]
[1757381693493,18.70519977,4286.6,4286.5,0.002]
[1757381695402,12.65350476,4286.1,4285.8,0.12037013]
[1757381695564,18.5717266,4286.1,4285.8,0.027]
[1757381695771,19.8284266,4286.1,4285.8,0.027]
[1757381696285,19.61220476,4286.1,4285.8,0.027]
[1757381696486,21.17102691,4286.1,4285.8,0.027]
[1757381697652,14.26002691,4286.1,4285.8,0.027]
[1757381697894,18.17102691,4286.1,4285.8,0.027]
[1757381699970,11.1708455,4286.1,4285.8,0.027]
[1757381700171,11.6426455,4286.1,4285.8,0.027]
[1757381701818,0.792,4285.9,4285.8,0.027]
[1757381702114,13.58795917,4285.9,4285.8,0.027]
[1757381702342,8.27013222,4285.9,4285.8,0.027]
[1757381703178,8.4430782,4285.9,4285.8,0.027]
[1757381703918,3.73328666,4285.8,4284.8,0.025]
[1757381704218,9.65399477,4285.2,4284.8,0.025]
[1757381704387,15.67239477,4285.2,4284.8,0.025]
[1757381704579,16.14409477,4285.2,4284.8,0.025]
[1757381704777,10.06151336,4285.2,4284.8,0.025]
[1757381704982,11.41399638,4285.2,4284.8,0.025]
[1757381707127,12.81399638,4285.2,4284.8,0.025]
[1757381707421,11.41399638,4285.2,4284.8,0.025]
[1757381708652,11.41499638,4285.2,4284.8,0.025]
[1757381710021,10.96919638,4285.2,4284.8,0.025]
[1757381710177,10.96919638,4285.2,4285.1,0.042]
[1757381710382,11.41499638,4285.2,4285.1,0.042]
[1757381710696,11.88669638,4285.2,4285.1,0.042]
[1757381713028,8.82761336,4285.2,4285.1,0.3336]
[1757381713518,9.61571336,4285.2,4285.1,0.042]
[1757381713721,9.14401336,4285.2,4285.1,0.042]
[1757381713896,8.82761336,4285.2,4285.1,0.042]
[1757381714490,9.98831029,4285.2,4285.1,0.042]
[1757381714695,0.792,4284.9,4284.8,0.025]
[1757381714934,4.704,4284.9,4284.8,0.025]
[1757381715111,7.03777675,4284.9,4284.8,0.3166]
[1757381715310,4.704,4284.9,4284.8,0.3166]
[1757381715739,7.03777675,4284.9,4284.8,0.3166]
[1757381717025,4.704,4284.9,4284.8,0.3166]
[1757381717603,4.704,4284.9,4284.8,1.1076]
[1757381718607,7.03777675,4284.9,4284.8,0.7808]
[1757381719028,7.03777675,4284.9,4284.8,0.3166]
[1757381719743,4.704,4284.9,4284.8,0.3166]
[1757381723407,7.03777675,4284.9,4284.8,0.3166]
[1757381724497,7.79997675,4284.9,4284.8,0.025]
[1757381724711,7.35417675,4284.9,4284.8,0.025]
[1757381724914,9.62208472,4284.9,4284.8,0.025]
[1757381725139,10.53958472,4284.9,4284.8,0.025]
[1757381727056,10.06788472,4284.9,4284.8,0.025]
[1757381727250,10.53958472,4284.9,4284.8,0.025]
[1757381728617,10.53958472,4284.9,4284.8,0.027]
[1757381729017,9.62108472,4284.9,4284.8,0.027]
[1757381729242,6.24477675,4284.9,4284.8,0.3186]
[1757381729623,7.03677675,4284.9,4284.8,0.3186]
[1757381729862,4.703,4284.9,4284.8,0.3186]
[1757381730318,7.03677675,4284.9,4284.8,0.3186]
[1757381731561,4.703,4284.9,4284.8,0.3186]
[1757381731763,3.911,4284.9,4284.8,0.3186]
[1757381731960,3.911,4284.9,4284.8,1.1239]
[1757381732338,4.703,4284.9,4284.8,1.1239]
[1757381734487,4.703,4284.9,4284.8,0.7971]
[1757381734925,4.819,4284.9,4284.8,0.3186]
[1757381735680,4.819,4284.9,4284.8,2.65243121]
[1757381736027,4.819,4284.9,4284.8,0.89797096]
[1757381737188,4.818,4284.9,4284.8,1.70327096]
[1757381737395,4.818,4284.9,4284.8,1.37647096]
[1757381737746,4.818,4284.9,4284.8,0.3186]
[1757381738972,4.818,4284.9,4284.8,2.65243121]
[1757381739768,4.702,4284.9,4284.8,3.45773121]
[1757381740382,4.702,4284.9,4284.8,0.3186]
[1757381743154,4.702,4284.9,4284.8,2.65243121]
[1757381743773,4.702,4284.9,4284.8,0.3186]
[1757381745899,4.702,4284.9,4284.8,2.65243121]
[1757381746110,4.702,4284.9,4284.8,2.99950406]
[1757381747501,4.702,4284.9,4284.8,0.66567285]
[1757381748209,5.0101,4284.9,4284.8,0.027]
[1757381748500,8.26717675,4284.9,4284.8,0.027]
[1757381756015,3.12583121,4284.8,4284.6,0.002]
[1757381756218,9.30279365,4284.7,4284.6,0.002]
[1757381756532,10.53419365,4284.7,4284.6,0.002]
[1757381769367,3.909,4284.7,4284.6,1.108]
[1757381769724,4.701,4284.7,4284.6,1.108]
[1757381769928,4.701,4284.7,4284.6,0.39588344]
[1757381770267,3.909,4284.7,4284.6,0.39588344]
[1757381770467,7.36203122,4284.7,4284.6,0.002]
[1757381770638,7.77478568,4284.7,4284.6,0.002]
[1757381771025,7.33868568,4284.7,4284.6,0.002]
[1757381771372,7.03488568,4284.7,4284.6,0.002]
[1757381773363,4.701,4284.7,4284.6,0.3025]
[1757381773571,4.701,4284.7,4284.6,0.7812]
[1757381773755,4.701,4284.7,4284.6,1.108]
[1757381773944,4.701,4284.7,4284.6,1.41887084]
[1757381774143,7.03488568,4284.7,4284.6,1.00287084]
[1757381774471,7.03488568,4284.7,4284.6,0.002]
[1757381774675,7.03488568,4284.7,4284.6,0.3025]
[1757381775355,4.701,4284.7,4284.6,0.3025]
[1757381775674,4.701,4284.7,4284.6,1.108]
[1757381775875,4.701,4284.7,4284.6,0.3025]
[1757381777835,4.701,4284.7,4284.6,0.002]
[1757381778432,4.701,4284.7,4284.6,0.3025]
[1757381779844,4.701,4284.7,4284.6,0.7812]
[1757381780140,4.817,4284.7,4284.6,7.14225704]
[1757381780451,4.817,4284.7,4284.6,8.09508479]
[1757381782482,4.701,4284.7,4284.6,8.09508479]
[1757381782630,0.792,4284.7,4284.6,5.76114464]
[1757381782835,0.792,4284.7,4284.6,5.43434464]
[1757381783235,0.792,4284.7,4284.6,4.00281689]
[1757381784935,3.42968568,4284.7,4284.6,0.70231689]
[1757381785173,4.33458568,4284.7,4284.6,0.70231689]
[1757381785330,4.35793122,4284.7,4284.6,0.70231689]
[1757381785539,4.35793122,4284.7,4284.6,0.002]
[1757381785778,6.62583919,4284.7,4284.6,0.002]
[1757381785961,6.60249365,4284.7,4284.6,0.002]
[1757381790159,13.13841938,4284.7,4284.6,0.002]
[1757381790603,6.60249365,4284.7,4284.6,0.002]
[1757381792244,0.792,4284.7,4284.6,0.002]
[1757381792442,3.908,4284.8,4284.6,1.0827]
[1757381792443,0.001,4284.8,4284.6,1.0827]
[1757381792674,4.023,4284.7,4284.6,0.3012]
[1757381792858,4.023,4284.7,4284.6,5.63514015]
[1757381793204,3.907,4284.7,4284.6,6.60068749]
[1757381793482,3.907,4284.7,4284.6,7.05538749]
[1757381793785,4.699,4284.7,4284.6,7.05538749]
[1757381793961,3.907,4284.7,4284.6,7.05538749]
[1757381794488,0.001,4284.8,4284.7,5.33388568]
[1757381794785,3.908,4284.8,4284.7,7.42434632]
[1757381795080,3.908,4284.8,4284.7,7.72354632]
[1757381795481,0.001,4284.8,4284.7,7.72354632]
[1757381795789,0.793,4284.8,4284.7,7.72354632]
[1757381798600,0.793,4284.8,4284.6,3.118]
[1757381798810,0.793,4284.8,4284.6,0.002]
[1757381799099,4.699,4284.7,4284.6,0.002]
[1757381799501,8.29228568,4284.7,4284.6,0.002]
[1757381802078,5.0051,4284.7,4284.6,0.002]
[1757381802278,4.699,4284.7,4284.6,0.002]
[1757381802778,7.33898568,4284.7,4284.6,0.002]
[1757381802995,4.699,4284.7,4284.6,0.3012]
[1757381804202,5.9584,4284.7,4284.6,0.002]
[1757381804978,5.4676,4284.7,4284.6,0.002]
[1757381805378,4.699,4284.7,4284.6,0.002]
[1757381806307,5.0051,4284.7,4284.6,0.002]
[1757381807120,4.699,4284.7,4284.6,0.002]
[1757381807776,5.0051,4284.7,4284.6,0.002]
[1757381808560,4.699,4284.7,4284.6,0.002]
[1757381808764,5.0051,4284.7,4284.6,0.002]
[1757381809033,4.699,4284.7,4284.6,0.3012]
[1757381809486,7.03288568,4284.7,4284.6,0.3012]
[1757381809671,4.699,4284.7,4284.6,0.3012]
[1757381810661,4.699,4284.7,4284.6,0.7559]
[1757381810897,4.699,4284.7,4284.6,0.62473736]
[1757381811058,4.699,4284.7,4284.6,0.3012]
[1757381811368,5.0051,4284.7,4284.6,0.002]
[1757381811569,5.9584,4284.7,4284.6,0.002]
[1757381812362,8.29228568,4284.7,4284.6,0.002]
[1757381812563,5.9584,4284.7,4284.6,0.002]
[1757381813276,5.4676,4284.7,4284.6,0.002]
[1757381813705,5.9584,4284.7,4284.6,0.002]
[1757381814203,8.29228568,4284.7,4284.6,0.002]
[1757381815410,10.56019365,4284.7,4284.6,0.002]
[1757381817017,3.1260491,4284.4,4284.3,0.052]
[1757381817220,8.84639464,4284.4,4284.3,0.052]
[1757381817406,9.1291491,4284.4,4284.3,0.052]
[1757381817721,10.0824491,4284.4,4284.3,0.052]
[1757381817897,11.55088176,4284.4,4284.3,0.052]
[1757381819024,3.12610358,4284.3,4284.2,1e-08]
[1757381819186,3.14944912,4284.3,4284.2,1e-08]
[1757381819538,4.38550358,4284.3,4284.2,1e-08]
[1757381819742,5.40572671,4284.3,4284.2,1e-08]
[1757381820702,4.45242671,4284.3,4284.2,1e-08]
[1757381821241,4.90502671,4284.3,4284.2,1e-08]
[1757381821400,5.39892671,4284.3,4284.2,1e-08]
[1757381825714,2.11832313,4284.3,4284.2,1e-08]
[1757381825921,4.14632671,4284.3,4284.2,1e-08]
[1757381826115,8.35632671,4284.3,4284.2,1e-08]
[1757381827125,8.05232671,4284.3,4284.2,1e-08]
[1757381827700,8.80892671,4284.3,4284.2,1e-08]
[1757381828031,9.30282671,4284.3,4284.2,1e-08]
[1757381831120,7.03210358,4284.3,4284.2,1e-08]
[1757381832504,1.793,4284.8,4284.2,0.76860001]
[1757381832704,0.116,4284.6,4284.5,2.33399463]
[1757381832919,0.116,4284.6,4284.5,1.0954]
[1757381833324,0.116,4284.6,4284.5,3.42939463]
[1757381833519,0.116,4284.6,4284.5,3.77233409]
[1757381833822,3.906,4284.7,4284.6,2.33394015]
[1757381834222,3.906,4284.7,4284.6,3.42934015]
[1757381834569,0.001,4284.8,4284.7,2.33388568]
[1757381834771,0.001,4284.8,4284.7,4.57330658]
[1757381835841,0.793,4284.8,4284.7,4.57330658]
[1757381836042,0.793,4284.8,4284.5,0.34293946]
[1757381836235,0.792,4284.6,4284.3,2.33410358]
[1757381836431,0.792,4284.4,4284.2,1e-08]
[1757381836630,4.702,4284.3,4284.2,1e-08]
[1757381836935,5.007,4284.3,4284.2,1e-08]
[1757381837130,5.9535,4284.3,4284.2,1e-08]
[1757381838074,4.703,4284.3,4284.2,1e-08]
[1757381840073,5.007,4284.3,4284.2,1e-08]
[1757381842376,4.703,4284.3,4284.2,1e-08]
[1757381843077,4.703,4284.3,4284.2,0.30870001]
[1757381843948,4.703,4284.3,4284.2,3.42955807]
[1757381844194,4.703,4284.3,4284.2,4.07691388]
[1757381844688,3.911,4284.3,4284.2,7.07691388]
[1757381845392,1.791,4284.6,4284.5,2.33399463]
[1757381845548,0.001,4284.8,4284.3,2.33407515]
[1757381845549,0.001,4284.8,4284.6,2.33392267]
[1757381845747,0.001,4284.8,4284.7,0.54209227]
[1757381846393,4.704,4284.8,4284.7,0.54209227]
[1757381848093,5.008,4284.8,4284.6,0.116]
[1757381848251,1.7385,4284.7,4284.2,1e-08]
[1757381848459,0.792,4284.5,4284.2,1e-08]
[1757381848661,1.096,4284.3,4284.2,1e-08]
[1757381849387,1.5486,4284.3,4284.2,1e-08]
[1757381851297,2.0482,4284.3,4284.2,1e-08]
[1757381851476,4.38230358,4284.3,4284.2,1e-08]
[1757381851675,2.0482,4284.3,4284.2,1e-08]
[1757381851992,4.38230358,4284.3,4284.2,1e-08]
[1757381852190,5.39063394,4284.3,4284.2,1e-08]
[1757381854566,0.792,4283.7,4283.1,0.01300001]
[1757381854759,0.792,4283.5,4283.1,0.01300001]
[1757381855102,0.792,4283.3,4283.1,0.01300001]
[1757381855303,4.708,4283.2,4283.1,0.01300001]
[1757381856017,4.708,4283.2,4283.1,0.30260001]
[1757381858088,4.708,4283.2,4283.1,0.20260001]
[1757381858452,4.824,4283.2,4283.1,0.20260001]
[1757381858605,4.824,4283.2,4283.1,0.45635172]
[1757381858805,4.708,4283.2,4283.1,6.23485754]
[1757381859144,3.916,4283.2,4283.1,6.23485754]
[1757381859447,3.916,4283.2,4282.6,1.16418368]
[1757381859645,0.792,4283.1,4282.7,5.45096048]
[1757381859850,3.915,4283.0,4282.8,3.59206605]
[1757381860164,4.707,4283.0,4282.9,2.62446656]
[1757381860744,4.707,4283.0,4282.9,5.62446656]
[1757381860971,4.707,4283.0,4282.9,6.49181561]
[1757381861683,0.792,4283.0,4282.9,7.30531561]
[1757381862558,0.792,4283.0,4282.9,7.06551561]
[1757381863159,0.792,4283.0,4282.9,7.30531561]
[1757381863582,0.792,4283.0,4282.9,6.60781561]
[1757381869188,1.792,4284.2,4283.0,3.0]
[1757381869349,3.913,4284.0,4283.9,2.45032152]
[1757381869552,0.116,4284.6,4284.2,2.33413793]
[1757381869553,3.915,4284.3,4284.2,2.33413793]
[1757381869994,3.915,4284.3,4284.2,2.62373793]
[1757381870153,4.707,4284.3,4284.2,5.62373793]
[1757381870352,3.915,4284.3,4284.2,6.43113552]
[1757381870699,4.707,4284.3,4284.2,6.43113552]
[1757381870869,4.707,4284.3,4284.2,6.14153552]
[1757381871299,5.4722,4284.3,4284.2,3.0]
[1757381871499,5.9718,4284.3,4284.2,3.0]
[1757381871999,5.9718,4284.3,4283.6,3.916]
[1757381872000,0.001,4284.0,4283.8,2.33437006]
[1757381872148,5.0165,4283.9,4283.8,2.33437006]
[1757381872353,5.9728,4283.9,4283.8,2.33437006]
[1757381873085,0.792,4283.8,4283.6,2.3344452]
[1757381873292,0.792,4283.8,4283.7,2.33443051]
[1757381873493,1.1005,4283.8,4283.7,2.33443051]
[1757381874487,1.1005,4283.8,4283.6,3.0]
[1757381874488,1.1005,4283.8,4283.6,2.33448085]
[1757381874688,1.5572,4283.8,4283.6,2.33448085]
[1757381874899,0.4567,4283.7,4283.6,2.33448085]
[1757381875306,0.7652,4283.7,4283.6,2.33448085]
[1757381876507,1.5572,4283.7,4283.6,2.33448085]
[1757381877385,2.0568,4283.7,4283.6,2.33448085]
[1757381877776,1.5572,4283.7,4283.6,2.33448085]
[1757381878171,1.5572,4283.7,4283.3,0.116]
[1757381878172,0.792,4283.6,4283.3,0.116]
[1757381878478,0.908,4283.4,4282.6,2.45702064]
[1757381878688,0.792,4282.9,4282.8,2.33692107]
[1757381878915,4.706,4282.9,4282.8,5.62652107]
[1757381883992,4.706,4282.9,4282.8,5.74252107]
[1757381884187,4.706,4282.9,4282.8,7.15894259]
[1757381884898,0.792,4282.9,4282.8,7.15894259]
[1757381886220,0.792,4282.9,4282.8,6.86934259]
[1757381886922,1.5383,4282.9,4282.8,6.86934259]
[1757381887425,2.037,4282.9,4282.8,6.86934259]
[1757381888951,5.948,4282.9,4282.8,6.86934259]
[1757381889449,5.948,4282.9,4282.8,5.45292107]
[1757381889749,5.948,4282.9,4282.8,5.33692107]
[1757381890439,5.4493,4282.9,4282.8,5.33692107]
[1757381892880,4.703,4282.9,4282.8,5.63722107]
[1757381893164,4.703,4282.9,4282.8,5.33692107]
[1757381893475,4.703,4282.9,4282.8,6.56324569]
[1757381895684,4.703,4282.9,4282.8,6.26294569]
[1757381895883,5.948,4282.9,4282.8,5.45292107]
[1757381896858,2.037,4282.9,4282.8,5.45292107]
[1757381897057,1.5383,4282.9,4282.8,5.45292107]
[1757381898297,0.792,4282.9,4282.8,5.75322107]
[1757381899117,0.792,4282.9,4282.8,5.45292107]
[1757381899317,0.792,4282.9,4282.8,6.62371569]
[1757381899518,0.792,4282.9,4282.8,6.92401569]
[1757381899844,0.792,4282.9,4282.8,6.62371569]
[1757381900547,1.238,4282.9,4282.8,6.62371569]
[1757381900743,1.5383,4282.9,4282.8,6.62371569]
[1757381901318,0.792,4282.9,4282.8,6.62371569]
[1757381901847,1.0923,4282.9,4282.8,6.62371569]
[1757381902037,0.792,4282.9,4282.8,6.62371569]
[1757381902713,0.792,4282.9,4282.8,6.92401569]
[1757381903884,0.792,4282.9,4282.8,6.62371569]
[1757381904181,0.792,4282.9,4282.8,6.92401569]
[1757381905180,0.792,4282.9,4282.8,6.62371569]
[1757381905381,1.5383,4282.9,4282.8,5.45292107]
[1757381906153,1.5383,4282.9,4282.8,3.118]
[1757381906381,2.037,4282.9,4282.8,5.45292107]
[1757381910385,1.5383,4282.9,4282.8,5.45292107]
[1757381911945,2.0337,4282.9,4282.8,5.45292107]
[1757381912785,2.0337,4282.9,4282.8,3.118]
[1757381913388,2.0337,4282.9,4282.8,0.002]
[1757381916189,2.0337,4282.9,4282.8,2.33692107]
[1757381916972,2.0337,4282.9,4282.8,0.002]
[1757381917255,2.0337,4282.9,4282.8,2.33692107]
[1757381917593,2.0337,4282.9,4282.8,0.002]
[1757381922597,2.0337,4282.9,4282.8,2.33692107]
[1757381922800,2.0337,4282.9,4282.8,0.002]
[1757381923374,2.0337,4282.9,4282.8,2.33692107]
[1757381924602,1.5383,4282.9,4282.8,2.33692107]
[1757381925396,0.792,4282.9,4282.8,2.33692107]
[1757381926718,1.2484,4282.9,4282.8,2.33692107]
[1757381927017,1.565,4282.9,4282.8,2.33692107]
[1757381927187,2.0604,4282.9,4282.8,2.33692107]
[1757381927390,2.0604,4282.9,4282.8,0.002]
[1757381927723,2.0604,4282.9,4282.8,2.33692107]
[1757381927921,1.565,4282.9,4282.8,2.33692107]
[1757381929206,0.792,4282.9,4282.8,2.64112107]
[1757381929621,0.792,4282.9,4282.8,2.33692107]
[1757381929815,1.2484,4282.9,4282.8,2.33692107]
[1757381932193,2.0604,4282.9,4282.8,0.002]
[1757381937238,2.66894,4282.9,4282.8,0.002]
[1757381938198,2.0604,4282.9,4282.8,0.002]
[1757381940042,4.39526656,4282.9,4282.8,0.002]
[1757381940758,2.0604,4282.9,4282.8,0.002]
[1757381941455,4.39526656,4282.9,4282.8,0.002]
[1757381944248,2.0604,4282.9,4282.8,0.002]
[1757381944621,4.39526656,4282.9,4282.8,0.002]
[1757381944821,5.23729322,4282.9,4282.8,0.002]
[1757381945029,2.90242666,4282.9,4282.8,0.002]
[1757381945650,5.23729322,4282.9,4282.8,0.002]
[1757381946226,2.90242666,4282.9,4282.8,0.002]
[1757381950415,5.23729322,4282.9,4282.8,0.002]
[1757381954436,6.79582666,4282.9,4282.8,0.002]
[1757381954778,9.13069322,4282.9,4282.8,0.002]
[1757381957629,15.66870602,4282.9,4282.8,0.002]
[1757381957756,2.193,4282.6,4282.5,0.006]
[1757381957962,2.193,4282.6,4282.3,0.002]
[1757381957963,3.12713917,4282.4,4282.3,0.002]
[1757381958165,7.32463917,4282.4,4282.3,0.002]
[1757381958459,8.25553917,4282.4,4282.3,0.002]
[1757381958658,10.28770283,4282.4,4282.3,0.002]
[1757381960275,0.792,4282.3,4281.5,0.003]
[1757381960476,8.25564823,4282.2,4281.5,0.003]
[1757381964532,14.79366103,4282.2,4281.5,0.003]
[1757381964736,16.5065465,4282.2,4281.5,0.003]
[1757381966329,9.9685337,4282.2,4281.5,0.003]
[1757381970328,9.4996337,4282.2,4281.5,0.003]
[1757381970528,9.5065337,4282.2,4281.5,0.003]
[1757381970851,9.0376337,4282.2,4281.5,0.003]
[1757381971044,8.7471337,4282.2,4281.5,0.003]
[1757381971402,9.9719337,4282.2,4281.5,0.003]
[1757381972066,8.7471337,4282.2,4281.5,0.003]
[1757381972243,8.7471337,4282.2,4281.5,0.4895]
[1757381972713,9.1809337,4282.2,4281.5,0.4895]
[1757381972913,9.4846337,4282.2,4281.5,0.4895]
[1757381974983,9.4846337,4282.2,4282.1,5.042]
[1757381978755,7.03424823,4282.2,4282.1,5.3543]
[1757381978950,7.33794823,4282.2,4282.1,5.042]
[1757381979156,8.25904823,4282.2,4282.1,5.042]
[1757381986813,15.37904823,4282.2,4282.1,5.042]
[1757381987139,17.6469562,4282.2,4282.1,5.042]
[1757381987483,17.1596562,4282.2,4282.1,5.042]
[1757381988246,17.6469562,4282.2,4282.1,5.042]
[1757381990618,13.36224823,4282.2,4282.1,5.3543]